fUST/lending_fUST_20250203
["ID","MTS","AMOUNT","RATE_DAILY","PERIOD"]
[351353971,1738533045077,-1934.63764144,0.00017195,2]
[351353973,1738533045088,-153.0,0.00017205,2]
[351353975,1738533045097,-153.0,0.00017205,2]
[351353977,1738533045107,-153.0,0.00017205,2]
[351353979,1738533045116,-153.0,0.00017205,2]
[351353982,1738533045126,-153.0,0.00017205,2]
[351353985,1738533045137,-153.0,0.00017206,2]
[351353988,1738533045147,-153.0,0.00017206,2]
[351353992,1738533045157,-153.0,0.00017206,2]
[351353996,1738533045168,-153.0,0.00017206,2]
[351354000,1738533045179,-153.0,0.00017206,2]
[351354005,1738533045188,-153.0,0.00017208,2]
[351354009,1738533045197,-153.0,0.00017208,2]
[351354012,1738533045207,-153.0,0.00017208,2]
[351354014,1738533045216,-228.94800832,0.00017231,2]
[351354016,1738533045225,-500.0,0.0001726,2]
[351354018,1738533045235,-234.56241585,0.0001726,2]
[351354020,1738533045244,-513.11,0.0001726,2]
[351354022,1738533045254,-500.0,0.0001726,2]
[351354024,1738533045263,-500.0,0.0001726,2]
[351354026,1738533045272,-500.0,0.0001726,2]
[351354028,1738533045282,-889.55,0.0001726,2]
[351354030,1738533045291,-1223.92,0.0001726,2]
[351354032,1738533045301,-540.03,0.0001726,2]
[351354034,1738533045310,-1589.05,0.0001726,2]
[351354036,1738533045319,-6376.26,0.0001726,2]
[351354038,1738533045328,-600.13,0.0001726,2]
[351354040,1738533045338,-500.0,0.0001726,2]
[351354042,1738533045347,-500.0,0.0001726,2]
[351354044,1738533045356,-1206.67,0.0001726,2]
[351354046,1738533045366,-686.13,0.0001726,2]
[351354048,1738533045375,-5895.8,0.0001726,2]
[351354050,1738533045384,-582.91,0.0001726,2]
[351354052,1738533045393,-747.44,0.0001726,2]
[351354054,1738533045403,-6512.41,0.0001726,2]
[351354056,1738533045412,-500.0,0.0001726,2]
[351354058,1738533045426,-1707.7,0.0001726,2]
[351354060,1738533045435,-500.0,0.0001726,2]
[351354062,1738533045445,-656.1,0.0001726,2]
[351354064,1738533045454,-1651.35,0.0001726,2]
[351354066,1738533045466,-810.14,0.0001726,2]
[351354068,1738533045476,-4584.53,0.0001726,2]
[351354070,1738533045486,-500.0,0.0001726,2]
[351354072,1738533045496,-358.77,0.0001726,2]
[351354074,1738533045506,-2401.85193437,0.0001726,2]
[351354077,1738533045518,-328.89492814,0.0001726,2]
[351354079,1738533045530,-297.6999905,0.0001726,2]
[351354085,1738533045575,500.0,0.00014657,2]
[351354234,1738533046973,-500.0,0.00016438,2]
[351354236,1738533046983,-513.99968803,0.00016574,2]
[351354238,1738533046993,-178.39396709,0.00016574,2]
[351354240,1738533047002,-500.0,0.00016575,2]
[351354243,1738533047012,-500.0,0.00016712,2]
[351354245,1738533047021,-117.63041288,0.00016848,2]
[351354253,1738533047094,-500.0,0.00016027,2]
[351354255,1738533047104,-55.80733328,0.00016848,2]
[351354257,1738533047114,-373.10314699,0.0001726,2]
[351354259,1738533047123,-38.88951973,0.0001726,2]
[351355099,1738533256070,286.036592,0.00013973,2]
[351355102,1738533511692,173.239989,0.00013699,2]
[351355172,1738534232792,-3510.68114833,0.00016175,2]
[351355175,1738534232801,-313.26497112,0.00016338,2]
[351355177,1738534232812,-257.0,0.000164,2]
[351355179,1738534232823,-300.0,0.00016437,2]
[351355181,1738534232832,-417.07447606,0.00016438,2]
[351355183,1738534232842,-334.58293153,0.00016438,2]
[351355185,1738534232852,-500.0,0.00016438,2]
[351355187,1738534232861,-500.0,0.00016438,2]
[351355188,1738534232870,-500.0,0.00016438,2]
[351355190,1738534232879,-500.0,0.00016438,2]
[351355191,1738534232888,-531.57555465,0.00016438,2]
[351355192,1738534232899,-500.0,0.00016438,2]
[351355193,1738534232909,-500.0,0.00016438,2]
[351355194,1738534232918,-500.0,0.00016438,2]
[351355195,1738534232927,-500.0,0.00016438,2]
[351355196,1738534232936,-500.0,0.00016438,2]
[351355197,1738534232945,-500.0,0.00016438,2]
[351355198,1738534232954,-500.0,0.00016438,2]
[351355199,1738534232963,-568.37,0.00016438,2]
[351355200,1738534232973,-500.0,0.00016438,2]
[351355201,1738534232983,-500.0,0.00016438,2]
[351355202,1738534232992,-500.0,0.00016438,2]
[351355203,1738534233001,-500.0,0.00016438,2]
[351355204,1738534233011,-500.0,0.00016438,2]
[351355205,1738534233020,-500.0,0.00016438,2]
[351355206,1738534233030,-500.0,0.00016438,2]
[351355207,1738534233040,-382.33147684,0.00016438,2]
[351355208,1738534233049,-500.0,0.00016438,2]
[351355209,1738534233059,-500.0,0.00016438,2]
[351355210,1738534233068,-260.87245711,0.00016438,2]
[351355211,1738534233078,-500.0,0.00016438,2]
[351355212,1738534233089,-493.76176332,0.00016438,2]
[351355213,1738534233101,-6.23823668,0.00016438,2]
[351355214,1738534233111,-500.0,0.00016438,2]
[351355215,1738534233120,-493.46843252,0.00016438,2]
[351355217,1738534236668,-18.48643392,0.00016438,2]
[351355218,1738534236678,-500.0,0.00016438,2]
[351355219,1738534236688,-500.0,0.00016438,2]
[351355220,1738534236698,-500.0,0.00016438,2]
[351355221,1738534236707,-327.49916583,0.00016438,2]
[351355222,1738534236717,-500.0,0.00016438,2]
[351355223,1738534236727,-500.0,0.00016438,2]
[351355224,1738534236737,-500.0,0.00016438,2]
[351355225,1738534236747,-500.0,0.00016438,2]
[351355226,1738534236756,-500.0,0.00016438,2]
[351355227,1738534236766,-500.0,0.00016438,2]
[351355228,1738534236775,-22.50701956,0.00016438,2]
[351355229,1738534236787,-477.49298044,0.00016438,2]
[351355230,1738534236797,-500.0,0.00016438,2]
[351355231,1738534236809,-304.17607203,0.00016438,2]
[351355232,1738534236823,-500.0,0.00016438,2]
[351355233,1738534236833,-500.0,0.00016438,2]
[351355234,1738534236843,-502.78524871,0.00016438,2]
[351355235,1738534236853,-278.60151893,0.00016438,2]
[351355236,1738534236866,-221.39848107,0.00016438,2]
[351355237,1738534236876,-500.0,0.00016438,2]
[351355238,1738534236886,-500.0,0.00016438,2]
[351355239,1738534236897,-500.0,0.00016438,2]
[351355240,1738534236909,-507.77623179,0.00016438,2]
[351355241,1738534236920,-505.83413291,0.00016438,2]
[351355242,1738534236929,-500.0,0.00016438,2]
[351355243,1738534236939,-236.57851579,0.00016438,2]
[351355244,1738534236952,-263.42148421,0.00016438,2]
[351355245,1738534236963,-500.0,0.00016438,2]
[351355246,1738534236973,-500.0,0.00016438,2]
[351355247,1738534236983,-163.6942976,0.00016438,2]
[351355248,1738534236993,-607.29,0.00016438,2]
[351355249,1738534237003,-500.0,0.00016438,2]
[351355250,1738534237013,-500.0,0.00016438,2]
[351355251,1738534237023,-500.0,0.00016438,2]
[351355252,1738534237032,-500.0,0.00016438,2]
[351355253,1738534237041,-648.08312253,0.00016438,2]
[351355254,1738534237051,-500.0,0.00016438,2]
[351355255,1738534237061,-500.0,0.00016438,2]
[351355256,1738534237070,-500.0,0.00016438,2]
[351355257,1738534237080,-500.0,0.00016438,2]
[351355258,1738534237089,-500.0,0.00016438,2]
[351355259,1738534237099,-500.0,0.00016438,2]
[351355260,1738534237110,-500.0,0.00016438,2]
[351355261,1738534237119,-500.0,0.00016438,2]
[351355262,1738534237129,-500.0,0.00016438,2]
[351355263,1738534237139,-500.0,0.00016438,2]
[351355264,1738534237149,-500.0,0.00016438,2]
[351355265,1738534237161,-500.0,0.00016438,2]
[351355266,1738534237170,-1519.35,0.00016438,2]
[351355267,1738534237180,-500.0,0.00016438,2]
[351355268,1738534237190,-500.0,0.00016438,2]
[351355269,1738534237200,-963.42,0.00016438,2]
[351355270,1738534237209,-500.0,0.00016438,2]
[351355271,1738534237219,-500.0,0.00016438,2]
[351355272,1738534237229,-500.0,0.00016438,2]
[351355273,1738534237239,-500.0,0.00016438,2]
[351355274,1738534237248,-1302.9,0.00016438,2]
[351355275,1738534237258,-500.0,0.00016438,2]
[351355276,1738534237267,-1697.27,0.00016438,2]
[351355277,1738534237277,-500.0,0.00016438,2]
[351355278,1738534237288,-500.0,0.00016438,2]
[351355279,1738534237298,-775.36,0.00016438,2]
[351355280,1738534237308,-1058.8,0.00016438,2]
[351355281,1738534237318,-500.0,0.00016438,2]
[351355282,1738534237327,-532.68,0.00016438,2]
[351355283,1738534237337,-1256.92,0.00016438,2]
[351355284,1738534237347,-19.78458104,0.00016438,2]
[351355285,1738534237486,-480.21541896,0.00016438,2]
[351355286,1738534237497,-6605.99,0.00016438,2]
[351355287,1738534237507,-730.57,0.00016438,2]
[351355288,1738534237516,-500.0,0.00016438,2]
[351355289,1738534237526,-500.0,0.00016438,2]
[351355290,1738534237535,-500.0,0.00016438,2]
[351355291,1738534237545,-500.0,0.00016438,2]
[351355292,1738534237555,-500.0,0.00016438,2]
[351355293,1738534237566,-1854.76,0.00016438,2]
[351355294,1738534237576,-627.05,0.00016438,2]
[351355295,1738534237585,-500.0,0.00016438,2]
[351355296,1738534237595,-6812.77,0.00016438,2]
[351355297,1738534237605,-500.0,0.00016438,2]
[351355298,1738534237616,-175.63821615,0.00016438,2]
[351355299,1738534237626,-500.0,0.00016438,2]
[351355300,1738534237636,-7098.31,0.00016438,2]
[351355301,1738534237646,-500.0,0.00016438,2]
[351355302,1738534237656,-500.0,0.00016438,2]
[351355303,1738534237666,-1714.96,0.00016438,2]
[351355304,1738534237675,-500.0,0.00016438,2]
[351355305,1738534237685,-500.0,0.00016438,2]
[351355306,1738534237695,-815.78,0.00016438,2]
[351355307,1738534237704,-684.09,0.00016438,2]
[351355308,1738534237713,-583.27829875,0.00016438,2]
[351355309,1738534237723,-500.0,0.00016438,2]
[351355310,1738534237733,-500.0,0.00016438,2]
[351355311,1738534237742,-500.0,0.00016438,2]
[351355312,1738534237752,-500.0,0.00016438,2]
[351355313,1738534237762,-507.55911499,0.00016438,2]
[351355314,1738534237771,-500.0,0.00016438,2]
[351355315,1738534237780,-500.0,0.00016438,2]
[351355316,1738534237790,-880.43,0.00016438,2]
[351355317,1738534237800,-500.0,0.00016438,2]
[351355318,1738534237810,-500.0,0.00016438,2]
[351355319,1738534237821,-500.0,0.00016438,2]
[351355320,1738534237832,-1427.36,0.00016438,2]
[351355321,1738534237842,-500.0,0.00016438,2]
[351355322,1738534237852,-500.0,0.00016438,2]
[351355323,1738534237862,-509.66991003,0.00016438,2]
[351355324,1738534237872,-500.0,0.00016438,2]
[351355325,1738534237882,-3338.5396412,0.00016438,2]
[351355336,1738534238869,-1186.3203588,0.00016438,2]
[351355337,1738534238878,-500.0,0.00016438,2]
[351355338,1738534238888,-500.0,0.00016438,2]
[351355339,1738534238899,-500.0,0.00016438,2]
[351355340,1738534238911,-500.0,0.00016438,2]
[351355341,1738534238920,-500.0,0.00016438,2]
[351355342,1738534238930,-1539.11,0.00016438,2]
[351355343,1738534238939,-500.0,0.00016438,2]
[351355344,1738534238949,-1084.00639742,0.00016438,2]
[351355345,1738534238962,-440.93954601,0.00016438,2]
[351355346,1738534238979,-2024.90405657,0.00016438,2]
[351355347,1738534238989,-500.0,0.00016438,2]
[351355348,1738534238999,-500.0,0.00016438,2]
[351355349,1738534239009,-500.0,0.00016438,2]
[351355350,1738534239019,-500.0,0.00016438,2]
[351355351,1738534239028,-500.0,0.00016438,2]
[351355352,1738534239038,-670.59,0.00016438,2]
[351355353,1738534239047,-500.0,0.00016438,2]
[351355354,1738534239057,-313.26497112,0.00016561,2]
[351355355,1738534239066,-439.39352839,0.00016574,2]
[351355356,1738534239075,-498.01778974,0.00016574,2]
[351355357,1738534239085,-500.0,0.00016575,2]
[351355358,1738534239095,-500.0,0.00016575,2]
[351355359,1738534239104,-500.0,0.00016575,2]
[351355360,1738534239113,-500.0,0.00016575,2]
[351355361,1738534239123,-500.0,0.00016575,2]
[351355362,1738534239132,-568.37,0.00016575,2]
[351355363,1738534239141,-500.0,0.00016575,2]
[351355364,1738534239152,-500.0,0.00016575,2]
[351355365,1738534239163,-500.0,0.00016575,2]
[351355366,1738534239172,-500.0,0.00016575,2]
[351355367,1738534239182,-500.0,0.00016575,2]
[351355368,1738534239192,-500.0,0.00016575,2]
[351355369,1738534239202,-500.0,0.00016575,2]
[351355370,1738534239211,-500.0,0.00016575,2]
[351355371,1738534239220,-500.0,0.00016575,2]
[351355372,1738534239230,-500.0,0.00016575,2]
[351355373,1738534239239,-500.0,0.00016575,2]
[351355374,1738534239249,-500.0,0.00016575,2]
[351355375,1738534239258,-500.0,0.00016575,2]
[351355376,1738534239267,-500.0,0.00016575,2]
[351355377,1738534239277,-500.0,0.00016575,2]
[351355378,1738534239286,-505.68548482,0.00016575,2]
[351355379,1738534239296,-500.0,0.00016575,2]
[351355380,1738534239305,-500.0,0.00016575,2]
[351355381,1738534239314,-500.0,0.00016575,2]
[351355382,1738534239324,-500.0,0.00016575,2]
[351355383,1738534239334,-500.0,0.00016575,2]
[351355384,1738534239343,-500.0,0.00016575,2]
[351355385,1738534239353,-500.0,0.00016575,2]
[351355386,1738534239362,-509.17297699,0.00016575,2]
[351355387,1738534239371,-500.0,0.00016575,2]
[351355388,1738534239381,-607.29,0.00016575,2]
[351355389,1738534239390,-500.0,0.00016575,2]
[351355390,1738534239399,-500.0,0.00016575,2]
[351355391,1738534239410,-500.0,0.00016575,2]
[351355392,1738534239419,-500.0,0.00016575,2]
[351355393,1738534239429,-500.0,0.00016575,2]
[351355394,1738534239438,-500.0,0.00016575,2]
[351355395,1738534239447,-500.0,0.00016575,2]
[351355396,1738534239456,-500.0,0.00016575,2]
[351355397,1738534239465,-477.99369715,0.00016575,2]
[351355398,1738534239474,-500.0,0.00016575,2]
[351355399,1738534239483,-278.12323383,0.00016575,2]
[351355400,1738534239493,-500.0,0.00016575,2]
[351355401,1738534239502,-500.0,0.00016575,2]
[351355402,1738534239511,-500.0,0.00016575,2]
[351355403,1738534239521,-500.0,0.00016575,2]
[351355404,1738534239530,-1519.35,0.00016575,2]
[351355405,1738534239540,-500.0,0.00016575,2]
[351355406,1738534239549,-500.0,0.00016575,2]
[351355407,1738534239559,-963.42,0.00016575,2]
[351355408,1738534239568,-500.0,0.00016575,2]
[351355409,1738534239577,-500.0,0.00016575,2]
[351355410,1738534239587,-500.0,0.00016575,2]
[351355411,1738534239596,-500.0,0.00016575,2]
[351355412,1738534239606,-1302.9,0.00016575,2]
[351355413,1738534239615,-500.0,0.00016575,2]
[351355414,1738534239624,-1697.27,0.00016575,2]
[351355415,1738534239634,-500.0,0.00016575,2]
[351355416,1738534239644,-576.86,0.00016575,2]
[351355417,1738534239655,-775.36,0.00016575,2]
[351355418,1738534239669,-1058.8,0.00016575,2]
[351355419,1738534239680,-500.0,0.00016575,2]
[351355420,1738534239691,-532.68,0.00016575,2]
[351355421,1738534239701,-1256.92,0.00016575,2]
[351355422,1738534239711,-500.0,0.00016575,2]
[351355423,1738534239721,-6605.99,0.00016575,2]
[351355424,1738534239731,-730.57,0.00016575,2]
[351355425,1738534239741,-1854.76,0.00016575,2]
[351355426,1738534239751,-627.05,0.00016575,2]
[351355427,1738534239761,-500.0,0.00016575,2]
[351355428,1738534239771,-6812.77,0.00016575,2]
[351355429,1738534239781,-500.0,0.00016575,2]
[351355430,1738534239790,-500.0,0.00016575,2]
[351355431,1738534239800,-7098.31,0.00016575,2]
[351355432,1738534239811,-1714.96,0.00016575,2]
[351355433,1738534239822,-500.0,0.00016575,2]
[351355434,1738534239832,-500.0,0.00016575,2]
[351355435,1738534239841,-815.78,0.00016575,2]
[351355436,1738534239851,-684.09,0.00016575,2]
[351355437,1738534239860,-500.0,0.00016575,2]
[351355438,1738534239870,-208.32218055,0.00016575,2]
[351355439,1738534239879,-500.0,0.00016575,2]
[351355440,1738534239888,-500.0,0.00016575,2]
[351355441,1738534239898,-500.0,0.00016575,2]
[351355442,1738534239912,-500.0,0.00016575,2]
[351355443,1738534239922,-880.43,0.00016575,2]
[351355444,1738534239931,-500.0,0.00016575,2]
[351355445,1738534239941,-1427.36,0.00016575,2]
[351355446,1738534239950,-500.0,0.00016575,2]
[351355447,1738534239959,-587.38658344,0.00016575,2]
[351355448,1738534239968,-500.0,0.00016575,2]
[351355449,1738534239978,-4524.86,0.00016575,2]
[351355450,1738534239988,-500.0,0.00016575,2]
[351355451,1738534239998,-500.0,0.00016575,2]
[351355452,1738534240008,-500.0,0.00016575,2]
[351355453,1738534240018,-500.0,0.00016575,2]
[351355454,1738534240028,-500.0,0.00016575,2]
[351355455,1738534240039,-1539.11,0.00016575,2]
[351355456,1738534240048,-403.97391244,0.00016575,2]
[351355457,1738534240058,-3549.85,0.00016575,2]
[351355458,1738534240068,-500.0,0.00016575,2]
[351355459,1738534240078,-500.0,0.00016575,2]
[351355460,1738534240087,-500.0,0.00016575,2]
[351355461,1738534240097,-500.0,0.00016575,2]
[351355463,1738534240107,-670.59,0.00016575,2]
[351355464,1738534240116,-154.79,0.0001663,2]
[351355465,1738534240126,-207.83646066,0.00016711,2]
[351355466,1738534240135,-500.0,0.00016711,2]
[351355467,1738534240145,-409.30244747,0.00016711,2]
[351355468,1738534240159,-500.0,0.00016712,2]
[351355469,1738534240168,-500.0,0.00016712,2]
[351355470,1738534240179,-500.0,0.00016712,2]
[351355471,1738534240188,-535.58,0.00016712,2]
[351355472,1738534240199,-500.0,0.00016712,2]
[351355473,1738534240209,-568.37,0.00016712,2]
[351355475,1738534240218,-500.0,0.00016712,2]
[351355476,1738534240228,-500.0,0.00016712,2]
[351355477,1738534240237,-500.0,0.00016712,2]
[351355478,1738534240247,-500.0,0.00016712,2]
[351355479,1738534240257,-157.08218412,0.00016712,2]
[351355480,1738534240266,-500.0,0.00016712,2]
[351355481,1738534240276,-500.0,0.00016712,2]
[351355482,1738534240285,-500.0,0.00016712,2]
[351355483,1738534240295,-500.0,0.00016712,2]
[351355484,1738534240304,-500.0,0.00016712,2]
[351355485,1738534240313,-500.0,0.00016712,2]
[351355487,1738534240334,-378.93776314,0.00016712,2]
[351355489,1738534240344,-500.0,0.00016712,2]
[351355490,1738534240353,-500.0,0.00016712,2]
[351355492,1738534240363,-500.0,0.00016712,2]
[351355493,1738534240373,-500.0,0.00016712,2]
[351355494,1738534240382,-500.0,0.00016712,2]
[351355495,1738534240392,-500.0,0.00016712,2]
[351355496,1738534240402,-172.14367488,0.00016712,2]
[351355497,1738534240416,-500.0,0.00016712,2]
[351355498,1738534240426,-607.29,0.00016712,2]
[351355499,1738534240566,-500.0,0.00016712,2]
[351355501,1738534240576,-500.0,0.00016712,2]
[351355502,1738534240586,-500.0,0.00016712,2]
[351355503,1738534240596,-500.0,0.00016712,2]
[351355504,1738534240605,-500.0,0.00016712,2]
[351355506,1738534240615,-500.0,0.00016712,2]
[351355507,1738534240624,-500.0,0.00016712,2]
[351355508,1738534240633,-500.0,0.00016712,2]
[351355509,1738534240643,-500.0,0.00016712,2]
[351355511,1738534240652,-500.0,0.00016712,2]
[351355512,1738534240663,-500.0,0.00016712,2]
[351355513,1738534240673,-507.05613726,0.00016712,2]
[351355515,1738534240683,-1519.35,0.00016712,2]
[351355517,1738534240692,-500.0,0.00016712,2]
[351355519,1738534240702,-500.0,0.00016712,2]
[351355521,1738534240712,-963.42,0.00016712,2]
[351355523,1738534240722,-500.0,0.00016712,2]
[351355525,1738534240732,-500.0,0.00016712,2]
[351355526,1738534240742,-500.0,0.00016712,2]
[351355527,1738534240751,-500.0,0.00016712,2]
[351355529,1738534240760,-1302.9,0.00016712,2]
[351355530,1738534240770,-500.0,0.00016712,2]
[351355532,1738534240779,-1697.27,0.00016712,2]
[351355533,1738534240789,-775.36,0.00016712,2]
[351355534,1738534240799,-1058.8,0.00016712,2]
[351355535,1738534240811,-500.0,0.00016712,2]
[351355536,1738534240822,-532.68,0.00016712,2]
[351355537,1738534240832,-1256.92,0.00016712,2]
[351355538,1738534240842,-500.0,0.00016712,2]
[351355539,1738534240853,-6605.99,0.00016712,2]
[351355540,1738534240863,-730.57,0.00016712,2]
[351355541,1738534240872,-1854.76,0.00016712,2]
[351355542,1738534240881,-627.05,0.00016712,2]
[351355543,1738534240891,-500.0,0.00016712,2]
[351355544,1738534240907,-6812.77,0.00016712,2]
[351355545,1738534240917,-500.0,0.00016712,2]
[351355546,1738534240927,-500.0,0.00016712,2]
[351355547,1738534240937,-7098.31,0.00016712,2]
[351355548,1738534240947,-1714.96,0.00016712,2]
[351355549,1738534240956,-500.0,0.00016712,2]
[351355550,1738534240965,-500.0,0.00016712,2]
[351355551,1738534240974,-815.78,0.00016712,2]
[351355552,1738534240984,-684.09,0.00016712,2]
[351355553,1738534240993,-500.0,0.00016712,2]
[351355554,1738534241003,-500.0,0.00016712,2]
[351355555,1738534241012,-506.58122246,0.00016712,2]
[351355556,1738534241022,-500.0,0.00016712,2]
[351355557,1738534241031,-500.0,0.00016712,2]
[351355558,1738534241041,-880.43,0.00016712,2]
[351355559,1738534241050,-500.0,0.00016712,2]
[351355560,1738534241059,-500.0,0.00016712,2]
[351355561,1738534241068,-1427.36,0.00016712,2]
[351355562,1738534241078,-500.0,0.00016712,2]
[351355563,1738534241087,-4524.86,0.00016712,2]
[351355564,1738534241096,-500.0,0.00016712,2]
[351355565,1738534241105,-500.0,0.00016712,2]
[351355566,1738534241114,-500.0,0.00016712,2]
[351355567,1738534241123,-500.0,0.00016712,2]
[351355568,1738534241133,-500.0,0.00016712,2]
[351355569,1738534241142,-1539.11,0.00016712,2]
[351355570,1738534241152,-3549.85,0.00016712,2]
[351355571,1738534241164,-601.85,0.00016712,2]
[351355572,1738534241173,-500.0,0.00016712,2]
[351355573,1738534241183,-500.0,0.00016712,2]
[351355574,1738534241192,-670.59,0.00016712,2]
[351355575,1738534241202,-500.0,0.00016712,2]
[351355576,1738534241211,-313.26497112,0.00016784,2]
[351355577,1738534241221,-500.0,0.00016849,2]
[351355578,1738534241231,-500.0,0.00016849,2]
[351355579,1738534241241,-500.0,0.00016849,2]
[351355580,1738534241250,-568.37,0.00016849,2]
[351355581,1738534241260,-500.0,0.00016849,2]
[351355582,1738534241269,-500.0,0.00016849,2]
[351355583,1738534241279,-500.0,0.00016849,2]
[351355584,1738534241288,-500.0,0.00016849,2]
[351355585,1738534241298,-500.0,0.00016849,2]
[351355586,1738534241307,-500.0,0.00016849,2]
[351355587,1738534241318,-500.0,0.00016849,2]
[351355588,1738534241328,-500.0,0.00016849,2]
[351355589,1738534241337,-500.0,0.00016849,2]
[351355590,1738534241347,-500.0,0.00016849,2]
[351355591,1738534241357,-500.0,0.00016849,2]
[351355592,1738534241366,-500.0,0.00016849,2]
[351355593,1738534241375,-500.0,0.00016849,2]
[351355594,1738534241385,-500.0,0.00016849,2]
[351355595,1738534241395,-500.0,0.00016849,2]
[351355596,1738534241405,-607.29,0.00016849,2]
[351355597,1738534241414,-612.96229093,0.00016849,2]
[351355598,1738534241424,-341.73121809,0.00016849,2]
[351355599,1738534241439,-158.26878191,0.00016849,2]
[351355600,1738534241448,-500.0,0.00016849,2]
[351355601,1738534241458,-500.0,0.00016849,2]
[351355602,1738534241467,-500.0,0.00016849,2]
[351355603,1738534241477,-452.3073996,0.00016849,2]
[351355604,1738534241520,-47.6926004,0.00016849,2]
[351355605,1738534241530,-500.0,0.00016849,2]
[351355606,1738534241539,-500.0,0.00016849,2]
[351355607,1738534241548,-500.0,0.00016849,2]
[351355608,1738534241558,-1519.35,0.00016849,2]
[351355609,1738534241567,-500.0,0.00016849,2]
[351355610,1738534241577,-963.42,0.00016849,2]
[351355611,1738534241586,-500.0,0.00016849,2]
[351355612,1738534241595,-500.0,0.00016849,2]
[351355613,1738534241604,-500.0,0.00016849,2]
[351355614,1738534241614,-500.0,0.00016849,2]
[351355615,1738534241622,-1302.9,0.00016849,2]
[351355616,1738534241632,-12.56351765,0.00016849,2]
[351355617,1738534241695,-487.43648235,0.00016849,2]
[351355618,1738534241705,-1697.27,0.00016849,2]
[351355619,1738534241714,-775.36,0.00016849,2]
[351355620,1738534241724,-1058.8,0.00016849,2]
[351355621,1738534241734,-500.0,0.00016849,2]
[351355622,1738534241743,-532.68,0.00016849,2]
[351355623,1738534241753,-1256.92,0.00016849,2]
[351355624,1738534241763,-500.0,0.00016849,2]
[351355625,1738534241772,-6605.99,0.00016849,2]
[351355626,1738534241781,-730.57,0.00016849,2]
[351355627,1738534241791,-627.05,0.00016849,2]
[351355628,1738534241800,-1854.76,0.00016849,2]
[351355629,1738534241811,-500.0,0.00016849,2]
[351355630,1738534241822,-6812.77,0.00016849,2]
[351355631,1738534241831,-500.0,0.00016849,2]
[351355632,1738534241840,-500.0,0.00016849,2]
[351355633,1738534241850,-7098.31,0.00016849,2]
[351355634,1738534241861,-1714.96,0.00016849,2]
[351355635,1738534241870,-500.0,0.00016849,2]
[351355636,1738534241879,-500.0,0.00016849,2]
[351355637,1738534241890,-815.78,0.00016849,2]
[351355638,1738534241899,-684.09,0.00016849,2]
[351355639,1738534241911,-500.0,0.00016849,2]
[351355640,1738534241921,-500.0,0.00016849,2]
[351355641,1738534241930,-500.0,0.00016849,2]
[351355642,1738534241939,-880.43,0.00016849,2]
[351355643,1738534241949,-500.0,0.00016849,2]
[351355644,1738534241958,-500.0,0.00016849,2]
[351355645,1738534241968,-1427.36,0.00016849,2]
[351355646,1738534241977,-500.0,0.00016849,2]
[351355647,1738534241986,-4524.86,0.00016849,2]